bitfinex/quotes_SOLUSD_20250228
["timestamp","ask_amount","ask_price","bid_price","bid_amount"]
[1740707908322,2.2989,132.22,132.14,20.0]
[1740707908818,0.03,132.22,132.14,0.14216157]
[1740707909014,0.03,132.22,132.15,20.0]
[1740707909327,0.03,132.22,132.16,1.73033613]
[1740707909531,0.03,132.22,132.16,138.23033613]
[1740707910514,0.03,132.22,132.16,1.58817456]
[1740707910824,0.03,132.22,132.15,156.5]
[1740707911021,0.03,132.22,132.13,0.063]
[1740707911726,0.03,132.22,132.15,20.0]
[1740707911924,0.03,132.22,132.15,21.58824532]
[1740707912432,0.03,132.22,132.16,0.14216157]
[1740707912721,0.03,132.22,132.15,136.5]
[1740707912924,0.03,132.22,132.15,138.08820916]
[1740707913223,0.03,132.22,132.15,136.5]
[1740707913518,0.03,132.22,132.18,20.0]
[1740707914221,0.03,132.22,132.17,0.14216157]
[1740707914804,0.03,132.22,132.17,312.14216157]
[1740707915009,0.03,132.22,132.17,448.64216157]
[1740707915405,0.03,132.22,132.17,448.5]
[1740707915615,0.03,132.22,132.17,136.5]
[1740707916831,20.0,132.2,132.13,0.063]
[1740707917126,20.0,132.19,132.13,0.063]
[1740707918826,2.2691,132.21,132.13,138.15190193]
[1740707919024,13.6146,132.21,132.13,0.063]
[1740707919322,20.0,132.18,132.13,0.063]
[1740707920226,0.03,132.22,132.16,20.0]
[1740707920540,2.2989,132.22,132.13,148.543]
[1740707920713,2.2989,132.22,132.13,12.043]
[1740707920908,7.9712,132.22,132.13,12.043]
[1740707921232,20.0,132.19,132.13,0.063]
[1740707922914,8.08576157,132.18,132.13,0.063]
[1740707923411,19.43386157,132.18,132.13,0.063]
[1740707923614,19.43386157,132.18,132.13,0.0001]
[1740707923907,7.9436,132.18,132.13,0.0001]
[1740707924704,0.14216157,132.17,132.13,0.0001]
[1740707925127,7.9448,132.16,132.13,0.0001]
[1740707925326,19.9048,132.16,132.13,0.0001]
[1740707926026,0.14216157,132.15,132.13,0.0001]
[1740707926221,19.9048,132.16,132.13,0.0001]
[1740707927930,2.2691,132.21,132.13,0.0001]
[1740707928226,20.0,132.18,132.13,0.0001]
[1740707928610,7.9418,132.21,132.13,0.0001]
[1740707928811,2.2691,132.21,132.13,0.0001]
[1740707929012,0.03,132.22,132.13,0.14226157]
[1740707929322,0.03,132.22,132.13,0.0001]
[1740707929827,0.14216157,132.21,132.13,0.0001]
[1740707930034,20.03,132.22,132.13,0.0001]
[1740707930419,0.03,132.22,132.13,0.0001]
[1740707930819,20.03,132.22,132.13,9.1566802]
[1740707931034,20.03,132.22,132.13,1.5885802]
[1740707931211,2.2691,132.21,132.13,0.0001]
[1740707931417,7.9418,132.21,132.13,0.0001]
[1740707931819,7.9418,132.21,132.13,0.14226157]
[1740707932540,7.9418,132.21,132.13,0.0001]
[1740707932723,20.0,132.18,132.13,0.0001]
[1740707933326,7.9443,132.17,132.13,0.0001]
[1740707934322,2.2691,132.21,132.13,0.0001]
[1740707934527,0.03,132.22,132.14,0.14216157]
[1740707934728,2.2989,132.22,132.15,1.58825542]
[1740707935429,0.03,132.22,132.14,0.14216157]
[1740707935634,0.03,132.22,132.13,136.5001]
[1740707935836,20.0,132.21,132.13,448.5001]
[1740707936032,0.03,132.22,132.14,1.73072183]
[1740707936542,0.03,132.22,132.14,6.52652183]
[1740707936543,20.03,132.22,132.14,6.52652183]
[1740707937433,2.2691,132.21,132.14,6.52652183]
[1740707937632,7.9418,132.21,132.13,0.0001]
[1740707937940,20.0,132.17,132.13,0.0001]
[1740707939435,20.0,132.14,132.13,0.0001]
[1740707941148,20.14216157,132.14,132.13,0.0001]
[1740707941531,0.14216157,132.11,132.04,0.063]
[1740707941735,20.0,132.08,132.04,0.063]
[1740707942045,0.14216157,132.07,132.04,0.063]
[1740707943030,20.14216157,132.07,132.04,0.0001]
[1740707943549,2.2716,132.06,132.04,0.0001]
[1740707943923,0.14216157,132.05,132.04,0.0001]
[1740707944124,0.14216157,132.02,131.99,0.063]
[1740707944448,20.0,131.98,131.91,0.063]
[1740707945954,2.2732,131.97,131.91,0.063]
[1740707946143,9.6627,132.2,131.92,15.0149]
[1740707946346,9.6627,132.2,131.97,0.14216157]
[1740707946545,9.6627,132.2,131.99,3.86065377]
[1740707946747,9.6627,132.2,132.01,0.14216157]
[1740707946942,11.99,132.17,132.02,0.14216157]
[1740707947138,11.99,132.17,132.01,1.58995014]
[1740707947347,11.99,132.17,132.02,0.14216157]
[1740707947542,0.14216157,132.1,132.0,148.46]
[1740707947842,13.74184527,132.11,132.0,148.46]
[1740707948242,2.2709,132.11,132.0,148.46]
[1740707948553,2.2709,132.11,132.02,0.14216157]
[1740707949052,2.2699,132.16,132.04,0.14216157]
[1740707949355,0.14216157,132.15,132.04,0.14216157]
[1740707949555,0.14216157,132.15,132.01,138.08968145]
[1740707949752,0.14216157,132.15,132.0,11.96]
[1740707950255,0.14216157,132.13,132.0,11.96]
[1740707951239,0.14216157,132.13,132.01,0.14216157]
[1740707951557,5.2966,132.16,132.02,1.58996322]
[1740707951851,11.99,132.17,132.03,14.67766157]
[1740707952051,0.03,132.17,132.05,0.14216157]
[1740707952258,0.03,132.17,132.07,0.14216157]
[1740707952434,0.03,132.17,132.09,0.14216157]
[1740707952754,0.03,132.17,132.1,1.58868927]
[1740707953060,0.03,132.17,132.09,138.08880602]
[1740707953237,0.03,132.17,132.1,0.14216157]
[1740707953438,0.03,132.17,132.12,0.14216157]
[1740707954162,0.03,132.17,132.11,136.5]
[1740707954343,0.03,132.17,132.08,276.1]
[1740707954550,0.03,132.15,132.08,139.6]
[1740707955144,0.03,132.15,132.09,0.14216157]
[1740707955664,0.03,132.15,132.08,139.6]
[1740707955857,0.03,132.15,132.09,1.73133363]
[1740707956664,0.03,132.15,132.09,0.14216157]
[1740707957059,0.03,132.15,132.11,20.0]
[1740707957247,0.03,132.15,132.13,0.14216157]
[1740707957756,0.03,132.15,132.12,1.58882159]
[1740707957957,0.03,132.15,132.11,136.5]
[1740707958368,0.03,132.15,132.1,0.14216157]
[1740707958737,0.03,132.15,132.09,1.58892111]
[1740707958941,0.03,132.15,132.08,276.1]
[1740707959145,0.03,132.15,132.08,139.6]
[1740707959543,0.03,132.15,132.09,1.73130862]
[1740707960036,0.03,132.15,132.09,138.23130862]
[1740707960853,0.03,132.15,132.09,138.2311699]
[1740707961055,0.03,132.15,132.09,450.2311699]
[1740707961253,0.03,132.15,132.09,456.21256157]
[1740707961865,0.03,132.15,132.09,144.21256157]
[1740707962453,0.03,132.15,132.12,20.0]
[1740707962653,0.03,132.15,132.1,1.73100212]
[1740707963159,0.03,132.15,132.1,0.14216157]
[1740707963556,0.03,132.15,132.09,136.5]
[1740707963757,0.03,132.15,132.08,276.1]
[1740707963956,0.03,132.15,132.09,0.14216157]
[1740707964159,0.03,132.15,132.08,276.1]
[1740707964464,0.03,132.15,132.09,0.14216157]
[1740707964856,0.03,132.15,132.11,20.14216157]
[1740707965078,0.03,132.15,132.13,20.14216157]
[1740707965457,0.03,132.15,132.13,20.0]
[1740707965643,0.03,132.15,132.12,136.5]
[1740707965848,0.03,132.15,132.09,1.58898792]
[1740707966054,0.03,132.15,132.09,136.5]
[1740707966775,0.03,132.15,132.12,20.0]
[1740707967359,0.03,132.15,132.12,21.58882016]
[1740707967566,0.03,132.15,132.12,20.0]
[1740707967776,0.03,132.15,132.08,139.6]
[1740707968083,0.03,132.15,132.08,127.64]
[1740707968862,7.946,132.14,132.08,127.64]
[1740707969583,2.2703,132.14,132.08,127.64]
[1740707969789,22.3001,132.15,132.08,127.64]
[1740707970762,20.0,132.14,132.08,127.64]
[1740707970958,20.0,132.14,132.06,0.14216157]
[1740707971577,22.3002,132.15,132.06,0.14216157]
[1740707972168,20.03,132.15,132.06,0.14216157]
[1740707972676,22.3002,132.15,132.06,0.14216157]
[1740707973686,22.3002,132.15,132.06,144.21436157]
[1740707974370,20.14216157,132.14,132.03,14.5355]
[1740707974574,20.0,132.14,132.03,22.1094]
[1740707974978,0.14216157,132.13,132.03,14.5355]
[1740707975259,0.14216157,132.13,132.0,283.6385]
[1740707975493,20.0,132.1,132.01,1.59006379]
[1740707975684,22.2711,132.09,132.01,136.5]
[1740707976073,20.0,132.09,132.02,0.14216157]
[1740707976387,0.14216157,132.07,132.0,0.063]
[1740707976793,20.0,132.03,132.0,0.063]
[1740707977963,2.2723,132.02,132.0,0.063]
[1740707978364,20.0,132.01,132.0,0.063]
[1740707978963,20.14216157,132.01,132.0,0.063]
[1740707979159,20.14216157,132.01,132.0,0.0001]
[1740707980170,22.41466157,132.01,132.0,0.0001]
[1740707981398,20.0,131.99,131.91,0.063]
[1740707982300,2.273,131.98,131.91,0.063]
[1740707982493,2.273,131.98,131.92,20.0]
[1740707982793,20.0,132.02,131.93,0.14216157]
[1740707983090,2.2725,132.01,131.93,136.64216157]
[1740707983388,2.2725,132.01,131.93,138.23305854]
[1740707983583,22.2725,132.01,131.93,138.23305839]
[1740707983893,23.2785,132.06,131.97,1.79605622]
[1740707983894,2.2722,132.03,131.97,1.79605622]
[1740707984095,193.73110618,132.12,131.97,1.79605622]
[1740707984096,5.6778,132.1,131.97,143.10855622]
[1740707984307,5.6778,132.1,132.03,0.14216157]
[1740707984492,2.2711,132.09,132.03,0.14216157]
[1740707984695,2.2711,132.09,132.03,136.64216157]
[1740707985012,2.2711,132.09,132.03,138.23186654]
[1740707985174,2.2711,132.09,132.03,136.64216157]
[1740707985376,5.6764,132.13,132.03,138.23192367]
[1740707985605,5.6764,132.13,132.03,136.64216157]
[1740707985606,7.9468,132.13,132.03,136.64216157]
[1740707986204,0.14216157,132.12,132.03,136.5]
[1740707987095,20.0,132.1,132.03,136.5]
[1740707987400,0.14216157,132.09,132.0,1.58994031]
[1740707987579,0.14216157,132.09,131.97,0.063]
[1740707987580,0.14216157,132.05,131.97,0.063]
[1740707988386,20.0,132.06,131.97,0.063]
[1740707988998,0.14216157,132.05,131.97,0.063]
[1740707989583,7.952,132.04,131.97,0.063]
[1740707991207,20.0,132.01,131.97,0.0001]
[1740707991404,20.0,131.98,131.97,0.0001]
[1740707991700,0.14216157,131.94,131.91,0.063]
[1740707991896,20.0,131.92,131.91,0.063]
[1740707992109,20.0,131.92,131.91,0.0001]
[1740707992780,0.14216157,131.91,131.9,0.0001]
[1740707992986,20.14216157,131.91,131.9,0.0001]
[1740707993193,20.0,131.9,131.84,0.063]
[1740707993383,0.14216157,131.89,131.84,0.063]
[1740707993781,2.2747,131.88,131.84,0.063]
[1740707994502,20.0,131.9,131.84,0.063]
[1740707995023,0.14216157,131.89,131.84,0.063]
[1740707995879,0.14216157,131.87,131.78,0.063]
[1740707996092,0.14216157,131.82,131.78,0.063]
[1740707996888,20.0,131.83,131.78,0.063]
[1740707997902,11.92,131.86,131.78,0.063]
[1740707998093,21.342,131.91,131.78,142.75964151]
[1740707998290,21.342,131.91,131.78,141.16676157]
[1740707998291,0.14216157,131.9,131.78,141.16676157]
[1740707998805,0.14216157,131.87,131.78,0.063]
[1740707999803,0.14216157,131.85,131.78,0.063]
[1740708000003,0.14216157,131.8,131.78,0.063]
[1740708000193,0.14216157,131.8,131.7,0.063]
[1740708001402,20.14216157,131.8,131.7,0.063]
[1740708001791,0.14216157,131.78,131.7,0.063]
[1740708001992,11.92,131.77,131.7,0.063]
[1740708002193,2.2759,131.82,131.7,0.063]
[1740708002422,11.92,131.85,131.71,9.15886157]
[1740708002596,20.0,131.82,131.71,9.15886157]
[1740708002906,11.92,131.85,131.71,145.5167]
[1740708003204,20.0,131.82,131.7,0.063]
[1740708003410,0.14216157,131.81,131.7,0.063]
[1740708003794,0.14216157,131.79,131.7,0.063]
[1740708003991,2.2754,131.84,131.71,0.14216157]
[1740708004309,11.92,131.85,131.71,138.23575875]
[1740708004507,14.1953,131.85,131.7,136.563]
[1740708004807,0.14216157,131.81,131.71,0.063]
[1740708005104,19.9135,131.85,131.71,0.063]
[1740708005310,14.2253,131.85,131.71,136.70516157]
[1740708005488,14.2253,131.85,131.71,138.29878778]
[1740708005694,20.0,131.82,131.72,11.94]
[1740708005890,0.03,131.85,131.73,1.73546096]
[1740708006111,0.03,131.85,131.77,9.0637]
[1740708006312,0.03,131.85,131.77,145.5637]
[1740708006692,0.03,131.85,131.78,0.14216157]
[1740708006895,0.03,131.85,131.78,138.23483752]
[1740708007202,0.03,131.85,131.8,0.14216157]
[1740708007396,9.2264,131.99,131.85,0.14216157]
[1740708007600,2.2728,131.99,131.85,138.23387817]
[1740708007790,2.3028,131.99,131.85,138.23387817]
[1740708007991,2.3028,131.99,131.87,9.4516]
[1740708008208,7.985,131.99,131.87,9.4516]
[1740708008401,0.14216157,131.98,131.87,9.4516]
[1740708008602,7.985,131.99,131.87,9.4516]
[1740708008806,2.3028,131.99,131.88,1.73390906]
[1740708009195,2.3028,131.99,131.88,138.23390906]
[1740708009196,0.03,131.99,131.88,138.23390906]
[1740708009397,20.0,131.97,131.88,136.5]
[1740708009922,11.95,131.99,131.88,138.23396838]
[1740708010209,14.223,131.99,131.88,136.5]
[1740708010416,0.14216157,131.98,131.87,9.4516]
[1740708010617,14.223,131.99,131.88,0.14216157]
[1740708010793,0.14216157,131.98,131.87,145.9516]
[1740708010993,14.223,131.99,131.88,0.14216157]
[1740708011196,11.95,131.99,131.9,0.14216157]
[1740708011390,0.03,131.99,131.9,0.14216157]
[1740708011621,0.03,131.99,131.9,20.14216157]
[1740708011913,0.03,131.99,131.9,136.5]
[1740708012114,0.17216157,131.99,131.87,9.4516]
[1740708013116,0.14216157,131.94,131.82,9.4983]
[1740708013288,75.34150618,131.98,131.77,4.4597]
[1740708013289,0.14216157,131.89,131.77,140.9597]
[1740708013495,0.14216157,131.89,131.77,4.4597]
[1740708013992,20.0,131.85,131.77,4.4597]
[1740708014189,0.14216157,131.84,131.76,9.4983]
[1740708014412,20.0,131.83,131.76,9.4983]
[1740708014612,0.14216157,131.82,131.71,4.5243]
[1740708014815,0.14216157,131.82,131.71,0.063]
[1740708015211,20.14216157,131.82,131.71,0.063]
[1740708016106,0.14216157,131.8,131.71,0.063]
[1740708016298,20.0,131.76,131.71,0.063]
[1740708016509,0.14216157,131.75,131.71,0.063]
[1740708016907,7.966,131.81,131.71,0.063]
[1740708017092,20.0,131.8,131.71,0.063]
[1740708017299,0.14216157,131.79,131.71,0.063]
[1740708017493,20.0,131.8,131.71,0.063]
[1740708018126,2.2763,131.79,131.71,0.063]
[1740708018333,0.14216157,131.75,131.71,0.063]
[1740708018621,20.0,131.72,131.71,0.063]
[1740708019003,20.0,131.72,131.7,0.063]
[1740708019314,20.0,131.68,131.57,136.563]
[1740708019513,20.0,131.64,131.57,0.063]
[1740708019900,0.14216157,131.66,131.57,0.063]
[1740708020111,5.6969,131.65,131.57,0.063]
[1740708021925,11.94,131.72,131.58,20.14216157]
[1740708022220,7.972,131.71,131.6,0.14216157]
[1740708022405,7.972,131.71,131.61,1.59458075]
[1740708022600,2.2777,131.71,131.61,138.09458075]
[1740708023117,7.972,131.71,131.61,136.5]
[1740708023507,7.972,131.71,131.62,1.59467257]
[1740708023707,7.972,131.71,131.57,0.0001]
[1740708023708,75.79650618,131.7,131.57,0.0001]
[1740708023900,9.6654,131.67,131.42,1.21e-05]
[1740708024230,38.5246492,131.64,131.42,1.21e-05]
[1740708024525,4.7437,131.55,131.42,1.21e-05]
[1740708024723,15.54379508,131.54,131.42,1.21e-05]
[1740708024908,20.0,131.51,131.42,1.21e-05]
[1740708025112,20.0,131.49,131.42,1.21e-05]
[1740708025312,20.0,131.45,131.42,1.21e-05]
[1740708025506,1.59467257,131.44,131.42,1.21e-05]
[1740708025923,20.0,131.4,131.33,0.03]
[1740708026225,20.0,131.36,131.33,0.03]
[1740708026415,20.0,131.36,131.31,0.03]
[1740708026416,1.59467257,131.35,131.31,0.03]
[1740708026608,1.59467257,131.34,131.31,0.03]
[1740708027415,135.57,131.31,131.19,0.03]
[1740708027607,16.6710178,131.3,131.19,0.0001]
[1740708027810,80.80022869,131.29,131.19,0.0001]
[1740708028011,80.80022869,131.29,131.03,0.80710197]
[1740708028012,19.4255,131.27,131.16,1.21e-05]
[1740708028211,20.0,131.25,131.16,1.21e-05]
[1740708028414,12.98974519,131.24,131.16,1.21e-05]
[1740708028611,67.52022869,131.23,131.02,0.27029999]
[1740708028814,82.78382175,131.22,131.02,0.27029999]
[1740708029008,20.0,131.17,131.02,0.27029999]
[1740708029212,20.0,131.13,131.02,0.27029999]
[1740708029513,16.67292954,131.12,130.94,145.3592]
[1740708029919,20.0,131.09,131.02,0.03]
[1740708030116,20.0,131.05,131.02,0.03]
[1740708030429,4.41,131.03,130.94,9.2e-05]
[1740708030612,2.00662312,131.02,130.89,2.5077901]
[1740708030810,66.13110618,131.01,130.89,2.5077901]
[1740708031020,2.00654139,131.0,130.89,2.5077901]
[1740708031216,67.52022869,130.99,130.81,0.02]
[1740708031422,16.7963601,130.98,130.81,0.02]
[1740708031622,1.38912251,130.97,130.81,0.02]
[1740708031928,2.00737874,130.96,130.81,0.02]
[1740708032108,14.37112251,130.95,130.81,0.02]
[1740708032316,2.00761741,130.94,130.81,0.02]
[1740708032527,3.39673992,130.94,130.81,0.02]
[1740708032720,2.00761741,130.94,130.81,0.02]
[1740708032921,2.00579091,130.98,130.81,0.02]
[1740708033229,1.38912251,130.97,130.81,136.52]
[1740708033525,2.00561189,130.96,130.81,0.02]
[1740708033739,0.14216157,130.95,130.81,0.02]
[1740708033925,0.14216157,130.93,130.81,0.02]
[1740708034228,2.00652691,130.92,130.81,0.02]
[1740708034430,0.14216157,130.91,130.81,0.02]
[1740708034728,0.14216157,130.89,130.81,0.02]
[1740708034909,0.14216157,130.87,130.81,0.02]
[1740708035111,0.14216157,130.85,130.81,0.02]
[1740708035319,17.7768891,130.86,130.81,0.02]
[1740708035320,2.00759577,130.84,130.81,0.02]
[1740708035516,2.00759577,130.84,130.72,88.03674147]
[1740708035712,0.14216157,130.83,130.7,74.983229]
[1740708036013,2.00761814,130.82,130.7,163.01997047]
[1740708036216,2.00739142,130.85,130.7,82.634129]
[1740708036423,2.00739142,130.85,130.7,171.49149729]
[1740708036619,2.006658,130.95,130.71,0.14216157]
[1740708036822,3.39578051,130.95,130.73,0.14216157]
[1740708037033,1.38912251,130.94,130.73,88.03674147]
[1740708037334,0.14216157,130.92,130.7,170.67087047]
[1740708037532,106.46951194,130.95,130.7,170.67087047]
[1740708037533,3.39658567,130.91,130.7,170.67087047]
[1740708037730,1.38912251,130.9,130.71,0.96166427]
[1740708037915,2.00623118,130.89,130.71,88.85624417]
[1740708038229,16.92637463,130.88,130.7,74.983229]
[1740708038432,0.14216157,130.85,130.7,74.983229]
[1740708038614,0.14216157,130.83,130.7,74.983229]
[1740708038923,0.14216157,130.81,130.7,74.983229]
[1740708039123,14.96,130.8,130.7,74.983229]
[1740708039717,0.14216157,130.79,130.7,74.983229]
[1740708040026,1.38912251,130.8,130.7,74.983229]
[1740708040232,15.04,130.93,130.72,9.3578]
[1740708040428,1.38912251,130.92,130.76,20.0]
[1740708040944,15.08,130.98,130.76,20.0]
[1740708041126,16.46912251,130.98,130.77,0.14216157]
[1740708041328,4.6688,130.96,130.7,82.634029]
[1740708041524,4.6688,130.94,130.7,269.134029]
[1740708041718,4.6688,130.94,130.71,3.88625804]
[1740708041933,1.38912251,130.93,130.7,74.983229]
[1740708042120,1.38912251,130.93,130.7,82.634129]
[1740708042321,1.38912251,130.93,130.7,74.983229]
[1740708042524,1.38912251,130.93,130.7,82.634229]
[1740708042740,1.38912251,130.93,130.7,74.983229]
[1740708042941,13.6873,130.8,130.7,40.89307167]
[1740708043256,1.53128408,130.79,130.7,27.09004201]
[1740708043736,0.14216157,130.76,130.7,27.09004201]
[1740708044043,0.14216157,130.74,130.7,26.94794201]
[1740708044341,0.14216157,130.72,130.7,26.94794201]
[1740708045429,1.53128408,130.71,130.7,26.94794201]
[1740708045631,1.53128408,130.71,130.7,26.80584201]
[1740708046247,1.38912251,130.71,130.7,26.80584201]
[1740708046949,1.38912251,130.71,130.63,0.25077901]
[1740708047155,0.14216157,130.7,130.63,0.25077901]
[1740708047322,0.14216157,130.68,130.63,0.25077901]
[1740708047671,0.14216157,130.66,130.63,0.25077901]
[1740708048119,0.14216157,130.64,130.63,0.25077901]
[1740708048535,1.38912251,130.65,130.63,0.25077901]
[1740708048718,20.0,130.73,130.63,0.25077901]
[1740708048932,1.38912251,130.72,130.63,0.25077901]
[1740708050034,1.38912251,130.72,130.64,20.0]
[1740708050213,70.65660618,130.86,130.64,20.0]
[1740708050416,1.38912251,130.85,130.64,0.14216157]
[1740708050625,1.38912251,130.85,130.67,20.0]
[1740708050822,1.38912251,130.85,130.71,20.0]
[1740708051114,14.1563,130.94,130.71,20.0]
[1740708051327,1.38912251,130.93,130.71,20.0]
[1740708051532,0.14216157,130.92,130.73,20.0]
[1740708051729,1.38912251,130.91,130.74,9.7903]
[1740708051934,1.38912251,130.91,130.77,20.0]
[1740708052133,1.38912251,130.91,130.74,9.7903]
[1740708052545,2.43396157,130.9,130.74,9.7903]
[1740708052749,2.43396157,130.9,130.71,3.6993]
[1740708053139,0.14216157,130.86,130.69,8.8854]
[1740708053339,0.14216157,130.84,130.69,8.8854]
[1740708053542,0.14216157,130.82,130.69,8.8854]
[1740708053748,0.14216157,130.8,130.69,8.8854]
[1740708054831,0.14216157,130.8,130.63,0.25077901]
[1740708055230,1.38912251,130.81,130.63,7.90567901]
[1740708055565,2.2915,130.92,130.67,0.14216157]
[1740708055740,21.38912251,130.91,130.68,4.6647]
[1740708055944,1.38912251,130.9,130.69,0.14216157]
[1740708056135,1.38912251,130.9,130.71,0.14216157]
[1740708056336,1.38912251,130.9,130.76,0.14216157]
[1740708056533,0.063,130.93,130.76,0.14216157]
[1740708056735,0.063,130.93,130.81,4.4699]
[1740708056955,0.063,130.93,130.82,128.9]
[1740708057159,0.063,130.93,130.87,20.0]
[1740708057565,0.063,131.08,130.88,0.14216157]
[1740708057863,1.45212251,131.07,130.87,20.0]
[1740708058067,1.38912251,131.06,130.88,0.14216157]
[1740708058659,1.38912251,131.06,130.88,7.78216157]
[1740708058959,1.38912251,131.06,130.87,20.0]
[1740708059368,1.38912251,131.06,130.84,9.0254]
[1740708060070,3.67812251,131.06,130.84,9.0254]
[1740708060486,0.14216157,131.05,130.84,9.0254]
[1740708060689,1.38912251,131.04,130.84,9.0254]
[1740708061176,20.14216157,131.03,130.84,9.0254]
[1740708061367,0.14216157,131.01,130.84,9.0254]
[1740708061776,1.38912251,131.02,130.84,9.0254]
[1740708062158,0.14216157,131.01,130.84,9.0254]
[1740708062375,0.14216157,130.99,130.84,9.0254]
[1740708062550,0.14216157,130.99,130.82,128.82]
[1740708062551,0.14216157,130.97,130.82,128.82]
[1740708062758,1.38912251,130.96,130.81,4.4699]
[1740708063057,5.64339374,131.04,130.81,12.1145]
[1740708063257,1.38912251,131.03,130.86,20.0]
[1740708063563,2.3518,131.07,130.87,128.82]
[1740708063770,1.45212251,131.07,130.9,20.0]
[1740708063967,1.45212251,131.07,130.91,0.14216157]
[1740708064153,1.38912251,131.06,130.87,128.82]
[1740708064356,0.14216157,131.05,130.87,128.82]
[1740708064563,20.0,131.04,130.87,128.82]
[1740708064898,8.0739,131.07,130.87,128.82]
[1740708064899,1.38912251,131.03,130.87,128.82]
[1740708065063,1.38912251,131.03,130.88,0.14216157]
[1740708065263,0.16584689,131.04,130.87,136.461]
[1740708065571,0.14216157,131.03,130.87,136.461]
[1740708065771,0.14216157,131.01,130.87,136.461]
[1740708065967,2.3519,131.07,130.87,136.461]
[1740708065968,0.16584689,131.0,130.88,0.14216157]
[1740708066171,0.16584689,131.0,130.87,136.461]
[1740708066365,0.16584689,131.0,130.89,8.1959]
[1740708066783,0.16584689,131.0,130.93,0.14216157]
[1740708066985,0.16584689,131.0,130.95,0.14216157]
[1740708067174,0.063,131.07,130.95,0.14216157]
[1740708067487,0.063,131.07,131.03,20.0]
[1740708067788,0.063,131.07,131.05,20.0]
[1740708068386,0.063,131.07,131.03,0.14216157]
[1740708068566,0.063,131.08,131.05,20.0]
[1740708068770,0.063,131.14,131.06,0.14216157]
[1740708068982,0.063,131.14,131.07,4.4391]
[1740708069287,0.063,131.14,131.03,0.14216157]
[1740708069495,99.15634602,131.25,131.02,136.4323]
[1740708069699,0.14216157,131.24,131.05,20.0]
[1740708069974,1.38912251,131.24,131.03,38.59000609]
[1740708070211,2.00170388,131.23,131.05,38.37569587]
[1740708070387,2.00170388,131.23,131.03,47.03136785]
[1740708070592,9.36925313,131.29,131.04,0.14216157]
[1740708070593,2.00182234,131.25,131.04,0.14216157]
[1740708070771,2.00123931,131.28,131.06,38.48092879]
[1740708070973,0.14216157,131.27,131.05,38.37569587]
[1740708071286,6.53625789,131.29,131.11,38.96664525]
[1740708071479,1.1925931,131.26,131.11,38.96664525]
[1740708071789,1.1925931,131.26,131.1,20.0]
[1740708071790,81.12816532,131.32,131.13,38.30311662]
[1740708072092,81.12816532,131.32,131.12,167.09876952]
[1740708072269,5.7121,131.3,131.07,38.38556243]
[1740708072467,5.7121,131.3,131.05,38.37569587]
[1740708072899,5.7121,131.3,131.04,138.03745648]
[1740708073203,0.14216157,131.29,131.05,1.60194139]
[1740708073361,5.7121,131.3,131.06,0.14216157]
[1740708073562,0.14216157,131.26,131.05,1.60097188]
[1740708073780,0.21324235,131.26,131.04,9.35745648]
[1740708073996,66.13110618,131.25,131.0,8.3744]
[1740708074293,20.0,131.15,130.98,11.16799779]
[1740708074480,20.35540392,131.14,130.98,11.16799779]
[1740708074680,20.35540392,131.14,130.9,128.62]
[1740708074886,0.14216157,131.1,130.9,128.62]
[1740708075105,20.14216157,131.1,130.9,128.62]
[1740708075318,86.27326775,131.1,130.88,19.72210147]
[1740708075476,0.14216157,131.05,130.88,19.72210147]
[1740708075980,0.35540392,131.03,130.88,19.72210147]
[1740708076184,0.35540392,131.03,130.83,7.904e-05]